fUSD/lending_fUSD_20260208
["ID","MTS","AMOUNT","RATE_DAILY","PERIOD"]
[404758587,1770511867570,-562.01603867,0.00043835,120]
[404758588,1770511867579,-500.0,0.00043835,60]
[404758589,1770511867589,-500.0,0.00043835,60]
[404758590,1770511867598,-500.0,0.00043835,120]
[404758591,1770511867608,-500.0,0.00043835,60]
[404758592,1770511867617,-500.0,0.00043835,120]
[404758593,1770511867626,-500.0,0.00043835,60]
[404758594,1770511867635,-500.0,0.00043835,120]
[404758595,1770511867645,-1547.804032,0.00043835,120]
[404758596,1770511867655,-500.0,0.00043835,60]
[404758597,1770511867664,-500.0,0.00043835,120]
[404758598,1770511867674,-500.0,0.00043835,60]
[404758599,1770511867684,-1547.804032,0.00043835,120]
[404758600,1770511867693,-500.0,0.00043835,120]
[404758601,1770511867703,-500.0,0.00043835,60]
[404758602,1770511867712,-500.0,0.00043835,120]
[404758603,1770511867722,-500.0,0.00043835,60]
[404758604,1770511867731,-500.0,0.00043835,120]
[404758605,1770511867740,-500.0,0.00043835,60]
[404758606,1770511867750,-500.0,0.00043835,120]
[404758607,1770511867759,-253.97704517,0.00043835,60]
[404758608,1770511867769,-500.0,0.00043835,120]
[404758609,1770511867778,-317.60472902,0.00043835,30]
[404758610,1770511867787,-203.91159973,0.00043836,120]
[404758611,1770511867796,-151.0,0.00043836,120]
[404758612,1770511867806,-151.0,0.00043836,120]
[404758613,1770511867815,-5400.0,0.00043836,2]
[404758614,1770511867825,-1000.0,0.00043836,30]
[404758615,1770511867834,-151.0,0.00043836,120]
[404758616,1770511867844,-188.780998,0.00043836,120]
[404758617,1770511867853,-20000.0,0.0004384,120]
[404758618,1770511867863,-164.79,0.0004384,120]
[404758619,1770511867872,-192.26236211,0.0004384,120]
[404758620,1770511867882,-378.0,0.00043843,2]
[404758621,1770511867892,-378.0,0.00043874,2]
[404758622,1770511867903,-1443.88138384,0.0004395,120]
[404758623,1770511867913,-2000.0,0.0004396,3]
[404758624,1770511867922,-150.22,0.00044,10]
[404758625,1770511867932,-10000.0,0.00044,120]
[404758626,1770511867942,-150.0,0.00044,57]
[404758627,1770511867952,-5000.0,0.00044,120]
[404758628,1770511867966,-664.0597,0.00044,90]
[404758629,1770511867975,-444.08903806,0.00044,120]
[404758630,1770511867985,-1371.781911,0.00044,120]
[404758631,1770511867994,-160.0,0.00044,120]
[404758632,1770511868005,-160.0,0.00044,30]
[404758633,1770511868015,-168.9069045,0.00044,3]
[404758634,1770511868025,-500.0,0.00044,120]
[404758635,1770511868037,-1000.0,0.00044005,120]
[404758636,1770511868046,-256.366,0.00044005,120]
[404758637,1770511868056,-235.96390318,0.00044039,14]
[404758638,1770511868065,-199.76626799,0.00044064,19]
[404758639,1770511868075,-360.45678983,0.00044064,28]
[404758640,1770511868084,-611.34169212,0.00044064,2]
[404758641,1770511868094,-4104.37498607,0.00044064,2]
[404758642,1770511868103,-223.2130425,0.00044064,9]
[404758643,1770511868113,-192.26,0.00044064,120]
[404758644,1770511868122,-683.25,0.00044099,120]
[404758645,1770511868131,-551.6,0.00044099,120]
[404758646,1770511868140,-533.2,0.00044099,120]
[404758647,1770511868149,-581.92290928,0.00044099,120]
[404758648,1770511868158,-500.0,0.00044099,120]
[404758649,1770511868167,-428.19737325,0.00044099,120]
[404758650,1770511868176,-501.63,0.00044099,120]
[404758651,1770511868186,-500.0,0.00044099,120]
[404758652,1770511868196,-212.02417504,0.00044099,120]
[404758653,1770511868205,-150.0,0.000441,73]
[404758654,1770511868214,-150.0,0.000441,29]
[404758655,1770511868223,-150.0,0.000441,29]
[404758656,1770511868233,-240.0,0.000441,74]
[404758657,1770511868242,-150.0,0.000441,2]
[404758658,1770511868252,-240.266667,0.000441,10]
[404758659,1770511868262,-200.0,0.000441,26]
[404758660,1770511868271,-1000.0,0.0004411,30]
[404758661,1770511868280,-49423.0,0.00044113,30]
[404758662,1770511868289,-800.0,0.00044113,16]
[404758663,1770511868298,-800.0,0.00044113,16]
[404758664,1770511868307,-800.0,0.00044113,16]
[404758665,1770511868317,-800.0,0.00044113,16]
[404758666,1770511868325,-800.0,0.00044113,16]
[404758667,1770511868335,-800.0,0.00044113,16]
[404758668,1770511868344,-158.911982,0.00044138,7]
[404758669,1770511868353,-844.0,0.00044138,60]
[404758670,1770511868362,-371.99630296,0.00044138,60]
[404758671,1770511868371,-883.0,0.00044138,60]
[404758672,1770511868380,-883.0,0.00044138,60]
[404758673,1770511868389,-766.0,0.00044138,60]
[404758674,1770511868399,-757.0,0.00044138,60]
[404758675,1770511868408,-683.25,0.00044138,120]
[404758676,1770511868417,-683.25,0.00044138,120]
[404758677,1770511868427,-683.25,0.00044138,120]
[404758678,1770511868436,-683.25,0.00044138,120]
[404758679,1770511868446,-683.32367025,0.00044138,120]
[404758680,1770511868455,-551.6,0.00044138,120]
[404758681,1770511868464,-551.6,0.00044138,120]
[404758682,1770511868473,-551.6,0.00044138,120]
[404758683,1770511868483,-551.6,0.00044138,120]
[404758684,1770511868492,-551.76675102,0.00044138,120]
[404758685,1770511868501,-533.2,0.00044138,120]
[404758686,1770511868511,-533.2,0.00044138,120]
[404758687,1770511868520,-533.2,0.00044138,120]
[404758688,1770511868529,-533.2,0.00044138,120]
[404758689,1770511868538,-533.30891575,0.00044138,120]
[404758690,1770511868548,-500.0,0.00044138,120]
[404758691,1770511868557,-462.22140181,0.00044138,120]
[404758692,1770511868566,-501.63,0.00044138,120]
[404758693,1770511868576,-501.63,0.00044138,120]
[404758694,1770511868585,-501.63,0.00044138,120]
[404758695,1770511868595,-501.63,0.00044138,120]
[404758696,1770511868604,-501.76624747,0.00044138,120]
[404758697,1770511868613,-10920.68988334,0.00044139,30]
[404758698,1770511868622,-10920.68988334,0.00044139,30]
[404758699,1770511868631,-10920.68988334,0.00044139,30]
[404758700,1770511868640,-10920.68988334,0.00044139,30]
[404758701,1770511868650,-10920.68988334,0.00044139,30]
[404758702,1770511868659,-151.0,0.00044139,120]
[404758703,1770511868669,-200.0,0.00044145,6]
[404758704,1770511868679,-267.46074303,0.00044151,31]
[404758705,1770511868688,-257.91778498,0.00044152,31]
[404758706,1770511868698,-2452.29,0.00044158,120]
[404758707,1770511868707,-214.235206,0.00044158,120]
[404758708,1770511868716,-151.0,0.00044158,120]
[404758709,1770511868726,-151.0,0.00044158,120]
[404758710,1770511868736,-151.0,0.00044158,120]
[404758711,1770511868745,-555.397952,0.00044158,120]
[404758712,1770511868754,-151.0,0.00044158,120]
[404758713,1770511868763,-555.397952,0.00044158,120]
[404758714,1770511868773,-555.397952,0.00044158,120]
[404758715,1770511868783,-151.0,0.00044158,120]
[404758716,1770511868793,-555.397952,0.00044158,120]
[404758717,1770511868802,-157.237346,0.00044158,120]
[404758718,1770511868812,-157.237346,0.00044158,120]
[404758719,1770511868821,-157.237346,0.00044158,120]
[404758720,1770511868831,-157.237354,0.00044158,120]
[404758721,1770511868841,-151.0,0.00044158,120]
[404758722,1770511868851,-151.0,0.00044158,120]
[404758723,1770511868860,-151.0,0.00044158,120]
[404758724,1770511868870,-151.0,0.00044158,120]
[404758725,1770511868879,-156.421944,0.00044158,120]
[404758726,1770511868889,-156.421944,0.00044158,120]
[404758727,1770511868899,-156.421944,0.00044158,120]
[404758728,1770511868908,-156.421948,0.00044158,120]
[404758729,1770511868918,-151.0,0.00044158,120]
[404758730,1770511868928,-151.0,0.00044158,120]
[404758731,1770511868938,-151.0,0.00044158,120]
[404758732,1770511868948,-151.0,0.00044158,120]
[404758733,1770511868959,-211.072404,0.00044158,120]
[404758734,1770511868970,-211.072404,0.00044158,120]
[404758735,1770511868980,-211.072404,0.00044158,120]
[404758736,1770511868990,-211.072408,0.00044158,120]
[404758737,1770511868999,-151.0,0.00044158,120]
[404758738,1770511869011,-151.0,0.00044158,120]
[404758739,1770511869020,-151.0,0.00044158,120]
[404758740,1770511869032,-167.625703,0.00044158,120]
[404758741,1770511869041,-167.625703,0.00044158,120]
[404758742,1770511869051,-151.0,0.00044158,120]
[404758743,1770511869061,-167.625703,0.00044158,120]
[404758744,1770511869070,-297.895818,0.00044158,120]
[404758745,1770511869079,-167.625701,0.00044158,120]
[404758746,1770511869088,-151.0,0.00044158,120]
[404758747,1770511869099,-220.285929,0.00044158,120]
[404758748,1770511869108,-151.0,0.00044158,120]
[404758749,1770511869119,-151.0,0.00044158,120]
[404758750,1770511869128,-220.285929,0.00044158,120]
[404758751,1770511869138,-151.0,0.00044158,120]
[404758752,1770511869147,-220.285929,0.00044158,120]
[404758753,1770511869157,-220.285934,0.00044158,120]
[404758754,1770511869166,-273.976466,0.00044158,120]
[404758755,1770511869175,-273.976466,0.00044158,120]
[404758756,1770511869185,-273.976466,0.00044158,120]
[404758757,1770511869194,-296.094929,0.00044158,120]
[404758758,1770511869203,-273.976461,0.00044158,120]
[404758759,1770511869213,-151.0,0.00044158,120]
[404758760,1770511869222,-320.575481,0.00044158,120]
[404758761,1770511869232,-320.575481,0.00044158,120]
[404758762,1770511869242,-320.575481,0.00044158,120]
[404758763,1770511869251,-320.575478,0.00044158,120]
[404758764,1770511869261,-151.0,0.00044158,120]
[404758765,1770511869270,-151.0,0.00044158,120]
[404758766,1770511869280,-151.0,0.00044158,120]
[404758767,1770511869289,-177.233088,0.00044158,120]
[404758768,1770511869299,-321.797364,0.00044158,120]
[404758769,1770511869308,-321.797364,0.00044158,120]
[404758770,1770511869317,-321.797364,0.00044158,120]
[404758771,1770511869327,-321.797359,0.00044158,120]
[404758772,1770511869337,-1028.099902,0.00044158,28]
[404758773,1770511869346,-1028.099902,0.00044158,28]
[404758774,1770511869355,-1028.099902,0.00044158,28]
[404758775,1770511869364,-1028.099898,0.00044158,28]
[404758776,1770511869374,-151.0,0.00044158,120]
[404758777,1770511869383,-151.0,0.00044158,120]
[404758778,1770511869392,-151.0,0.00044158,120]
[404758779,1770511869401,-151.0,0.00044158,120]
[404758780,1770511869411,-151.0,0.00044158,14]
[404758781,1770511869420,-151.0,0.00044158,14]
[404758782,1770511869429,-151.0,0.00044158,14]
[404758783,1770511869438,-151.0,0.00044158,120]
[404758784,1770511869447,-151.0,0.00044158,120]
[404758785,1770511869585,-270.0098,0.00044158,120]
[404758786,1770511869595,-151.0,0.00044158,120]
[404758787,1770511869604,-151.0,0.00044158,120]
[404758788,1770511869615,-151.0,0.00044158,120]
[404758789,1770511869625,-151.0,0.00044158,120]
[404758790,1770511869634,-1547.804032,0.00044158,120]
[404758791,1770511869644,-1547.804032,0.00044158,120]
[404758792,1770511869654,-1547.804032,0.00044158,120]
[404758793,1770511869663,-500.0,0.00044161,120]
[404758794,1770511869674,-500.0,0.00044161,120]
[404758795,1770511869684,-317.60472902,0.00044162,30]
[404758796,1770511869694,-317.60472902,0.00044162,30]
[404758797,1770511869704,-151.0,0.00044162,120]
[404758798,1770511869714,-699.223126,0.00044162,120]
[404758799,1770511869723,-699.223126,0.00044162,120]
[404758800,1770511869734,-699.223126,0.00044162,120]
[404758801,1770511869744,-699.223134,0.00044162,120]
[404758802,1770511869754,-444.832328,0.00044162,120]
[404758803,1770511869763,-444.832328,0.00044162,120]
[404758804,1770511869773,-444.832328,0.00044162,120]
[404758805,1770511869783,-444.832322,0.00044162,120]
[404758806,1770511869793,-427.17187006,0.00044162,30]
[404758807,1770511869802,-427.17187006,0.00044162,30]
[404758808,1770511869811,-427.17187006,0.00044162,30]
[404758809,1770511869820,-151.0,0.00044164,120]
[404758810,1770511869830,-151.0,0.00044164,120]
[404758811,1770511869839,-154.348419,0.00044164,120]
[404758812,1770511869849,-200.737238,0.00044164,120]
[404758813,1770511869859,-255.45322,0.00044164,120]
[404758814,1770511869870,-151.0,0.00044164,120]
[404758815,1770511869880,-255.45322,0.00044164,120]
[404758816,1770511869891,-228.73248,0.00044164,120]
[404758817,1770511869900,-255.45322,0.00044164,120]
[404758818,1770511869911,-1050.0,0.00044164,120]
[404758819,1770511869920,-255.453219,0.00044164,120]
[404758820,1770511869930,-1050.0,0.00044164,120]
[404758821,1770511869940,-1050.0,0.00044164,120]
[404758822,1770511869949,-151.0,0.00044164,120]
[404758823,1770511869962,-176.224203,0.00044164,120]
[404758824,1770511869972,-1050.0,0.00044164,120]
[404758825,1770511869983,-151.0,0.00044164,120]
[404758826,1770511869992,-176.224203,0.00044164,120]
[404758827,1770511870002,-388.992593,0.00044164,120]
[404758828,1770511870013,-151.0,0.00044164,120]
[404758829,1770511870022,-176.224203,0.00044164,120]
[404758830,1770511870032,-151.0,0.00044164,120]
[404758831,1770511870044,-388.992593,0.00044164,120]
[404758832,1770511870054,-176.224212,0.00044164,120]
[404758833,1770511870064,-157.778889,0.00044164,120]
[404758834,1770511870073,-205.668642,0.00044164,120]
[404758835,1770511870082,-388.992593,0.00044164,120]
[404758836,1770511870091,-151.0,0.00044164,120]
[404758837,1770511870100,-218.818319,0.00044164,31]
[404758838,1770511870110,-157.778889,0.00044164,120]
[404758839,1770511870119,-205.668642,0.00044164,120]
[404758840,1770511870129,-151.0,0.00044164,120]
[404758841,1770511870138,-218.818319,0.00044164,31]
[404758842,1770511870149,-157.778889,0.00044164,120]
[404758843,1770511870159,-388.99259,0.00044164,120]
[404758844,1770511870169,-205.668642,0.00044164,120]
[404758845,1770511870179,-218.818319,0.00044164,31]
[404758846,1770511870188,-157.778897,0.00044164,120]
[404758847,1770511870197,-205.668639,0.00044164,120]
[404758848,1770511870208,-218.818316,0.00044164,31]
[404758849,1770511870218,-151.0,0.00044164,120]
[404758850,1770511870227,-151.0,0.00044164,120]
[404758851,1770511870237,-189.130987,0.00044164,120]
[404758852,1770511870246,-189.130987,0.00044164,120]
[404758853,1770511870255,-189.130987,0.00044164,120]
[404758854,1770511870264,-189.130989,0.00044164,120]
[404758855,1770511870273,-151.0,0.00044164,120]
[404758856,1770511870283,-151.0,0.00044164,120]
[404758857,1770511870292,-151.0,0.00044164,120]
[404758858,1770511870301,-151.0,0.00044164,120]
[404758859,1770511870311,-151.0,0.00044164,120]
[404758860,1770511870320,-151.0,0.00044164,120]
[404758861,1770511870330,-248.259112,0.00044164,120]
[404758862,1770511870340,-1547.804032,0.00044164,120]
[404758863,1770511870351,-1547.804032,0.00044164,120]
[404758864,1770511870362,-1547.804032,0.00044164,120]
[404758865,1770511870371,-2977300.46931329,0.00044164,10]
[404758866,1770511870871,-150.0,0.00029211,2]
[404758867,1770511870881,-150.0,0.00032211,2]
[404758868,1770511870893,-305.17533586,0.00039747,2]
[404758869,1770511870903,-300.0,0.00039747,2]
[404758870,1770511870914,-500.0,0.00043835,120]
[404758871,1770511870923,-1547.804032,0.00043835,120]
[404758872,1770511870933,-500.0,0.00043835,120]
[404758873,1770511870943,-526.11,0.00043835,120]
[404758874,1770511870952,-500.0,0.00043835,120]
[404758875,1770511870966,-500.0,0.00043835,120]
[404758876,1770511870975,-526.11,0.00043835,120]
[404758877,1770511870985,-520.95925959,0.00043835,120]
[404758878,1770511870994,-1272.92894737,0.00043835,120]
[404758879,1770511871007,-274.87508463,0.00043835,120]
[404758880,1770511871017,-162.62038,0.00043835,120]
[404758881,1770511871028,-337.37962,0.00043835,120]
[404758882,1770511871039,-36.79671455,0.00043835,120]
[404758883,1770511871125,-300.0,0.00039747,2]
[404758884,1770511871135,-463.20328545,0.00043835,120]
[404758885,1770511871145,-526.11,0.00043835,120]
[404758886,1770511871154,-500.0,0.00043835,120]
[404758887,1770511871163,-508.22278729,0.00043835,120]
[404758888,1770511871172,-526.11,0.00043835,120]
[404758889,1770511871182,-500.0,0.00043835,120]
[404758890,1770511871191,-526.11,0.00043835,120]
[404758891,1770511871200,-500.0,0.00043835,120]
[404758892,1770511871208,-526.11,0.00043835,120]
[404758893,1770511871217,-324.65658559,0.00043835,120]
[404758894,1770511871225,-526.11,0.00043835,120]
[404758895,1770511871234,-526.11,0.00043835,120]
[404758896,1770511871243,-526.11,0.00043835,120]
[404758897,1770511871253,-526.11,0.00043835,120]
[404758898,1770511871263,-526.11,0.00043835,120]
[404758899,1770511871272,-526.11,0.00043835,120]
[404758900,1770511871281,-526.11,0.00043835,120]
[404758901,1770511871291,-526.11,0.00043835,120]
[404758902,1770511871300,-526.11,0.00043835,120]
[404758903,1770511871310,-526.11,0.00043835,120]
[404758904,1770511871319,-526.11,0.00043835,120]
[404758905,1770511871329,-1547.804032,0.00044158,120]
[404758906,1770511871338,-1547.804022,0.00044164,120]
[404758907,1770511871348,-13471.53238732,0.00044164,10]
[404758908,1770511871359,-605.23,0.00044164,10]
[404758909,1770511871371,-3689.66781969,0.00044164,10]
[404758910,1770511871384,-344.0,0.00044164,10]
[404758911,1770511871396,-13696.58265188,0.00044164,10]
[404758912,1770511871491,-300.0,0.00039747,2]
[404758913,1770511871501,-526.11,0.00043835,120]
[404758914,1770511871510,-526.11,0.00043835,120]
[404758915,1770511871520,-526.11,0.00043835,120]
[404758916,1770511871529,-526.11,0.00043835,120]
[404758917,1770511871538,-526.11,0.00043835,120]
[404758918,1770511871547,-27568.57660819,0.00044164,10]
[404758919,1770511871558,-4148.52774054,0.00044164,10]
[404758920,1770511871569,-4297.19999995,0.00044164,10]
[404758921,1770511871580,-727.594,0.00044164,10]
[404758922,1770511871591,-1222.0,0.00044164,10]
[404758923,1770511872240,2500.0,0.00032132,120]
[404758924,1770511872278,2500.0,0.00030711,120]
[404758925,1770511872331,2419.76155576,0.00034918,120]
[404758926,1770512087642,300.0,0.0002,45]
[404758927,1770512108648,390.0,0.00035616,30]
[404758941,1770512906607,320.0,0.00033446,120]
[404758946,1770513031432,-863.0,0.00015372,2]
[404758947,1770513031443,-136.0,0.00015372,2]
[404758948,1770513031457,-164.0,0.00015372,2]
[404758949,1770513031467,-300.0,0.00015372,2]
[404758950,1770513031478,-500.0,0.00015373,2]
[404758951,1770513031488,-501.67901363,0.00015373,2]
[404758952,1770513031503,-500.0,0.00015373,2]
[404758953,1770513031515,-160.0,0.00015373,2]
[404758954,1770513031527,-500.0,0.00015373,2]
[404758955,1770513031537,-157.09559265,0.00015373,2]
[404758956,1770513031547,-497.04262724,0.00015373,2]
[404758957,1770513031556,-594.94698261,0.00015373,2]
[404758958,1770513031567,-166.58008316,0.00015373,2]
[404758959,1770513031577,-405.75921632,0.00015373,2]
[404758960,1770513031599,-94.24078368,0.00015373,2]
[404758961,1770513031608,-211.61103574,0.00015373,2]
[404758962,1770513031622,-288.38896426,0.00015373,2]
[404758963,1770513031631,-593.4795323,0.00015373,2]
[404758964,1770513031643,-52.13965957,0.00015373,2]
[404758965,1770513031652,-161.0,0.00016494,2]
[404758967,1770513031661,-160.0,0.0001801,2]
[404758969,1770513031671,-235.23271721,0.00019082,2]
[404758971,1770513031680,-2.37262322,0.00020311,2]
[404758972,1770513037476,-310.3092487,0.00020311,2]
[404758973,1770513037486,-91.3069663,0.00023,2]
[404758974,1770513037500,-68.6930337,0.00023,2]
[404758975,1770513037510,-152.88,0.00025882,2]
[404758976,1770513037525,-180.22839493,0.00028911,2]
[404758977,1770513037535,-203.78056404,0.00028911,2]
[404758978,1770513037544,-220.51913758,0.00028911,2]
[404758979,1770513037558,-1347.40888453,0.00028911,2]
[404758980,1770513037569,-167.33502653,0.00028911,2]
[404758981,1770513037579,-1028.17508243,0.00029,3]
[404758982,1770513037596,-1187.75083997,0.00029,3]
[404758983,1770513037609,-20.0740776,0.00029,3]
[404758984,1770513037619,-353.51596531,0.0002901,2]
[404758985,1770513037629,-500.0,0.0002901,2]
[404758986,1770513037639,-500.0,0.0002901,2]
[404758987,1770513037649,-500.0,0.0002901,2]
[404758988,1770513037657,-500.0,0.0002901,2]
[404758989,1770513037666,-413.31242986,0.0002901,2]
[404758990,1770513037677,-500.0,0.0002901,2]
[404758991,1770513037687,-500.0,0.0002901,2]
[404758992,1770513037698,-500.0,0.0002901,2]
[404758993,1770513037709,-500.0,0.0002901,2]
[404758994,1770513037720,-500.0,0.0002901,2]
[404758995,1770513037729,-500.0,0.0002901,2]
[404758996,1770513037739,-500.0,0.0002901,2]
[404758997,1770513037749,-500.0,0.0002901,2]
[404758998,1770513037758,-500.0,0.0002901,2]
[404758999,1770513037770,-500.0,0.0002901,2]
[404759000,1770513037779,-500.0,0.0002901,2]
[404759001,1770513037788,-500.0,0.0002901,2]
[404759002,1770513037798,-500.0,0.0002901,2]
[404759003,1770513037812,-500.0,0.0002901,2]
[404759005,1770513037821,-500.0,0.0002901,2]
[404759007,1770513037831,-500.0,0.0002901,2]
[404759009,1770513037840,-500.0,0.0002901,2]
[404759010,1770513037850,-500.0,0.0002901,2]
[404759011,1770513037861,-500.0,0.0002901,2]
[404759012,1770513037871,-500.0,0.0002901,2]
[404759013,1770513037880,-500.0,0.0002901,2]
[404759014,1770513037890,-500.0,0.0002901,2]
[404759015,1770513037900,-500.0,0.0002901,2]
[404759016,1770513037910,-500.0,0.0002901,2]
[404759017,1770513037921,-500.0,0.0002901,2]
[404759018,1770513037933,-500.0,0.0002901,2]
[404759019,1770513037943,-500.0,0.0002901,2]
[404759020,1770513037955,-500.0,0.0002901,2]
[404759021,1770513037964,-518.66754357,0.0002901,2]
[404759022,1770513037976,-500.0,0.0002901,2]
[404759023,1770513037987,-500.0,0.0002901,2]
[404759024,1770513037997,-500.0,0.0002901,2]
[404759025,1770513038007,-500.0,0.0002901,2]
[404759026,1770513038017,-500.0,0.0002901,2]
[404759027,1770513038027,-500.0,0.0002901,2]
[404759028,1770513038036,-500.0,0.0002901,2]
[404759029,1770513038046,-500.0,0.0002901,2]
[404759030,1770513038055,-500.0,0.0002901,2]
[404759031,1770513038065,-500.0,0.0002901,2]
[404759032,1770513038075,-500.0,0.0002901,2]
[404759033,1770513038084,-500.0,0.0002901,2]
[404759034,1770513038094,-500.0,0.0002901,2]
[404759035,1770513038103,-500.0,0.0002901,2]
[404759036,1770513038113,-500.0,0.0002901,2]
[404759037,1770513038123,-500.0,0.0002901,2]
[404759038,1770513038132,-500.0,0.0002901,2]
[404759039,1770513038142,-500.0,0.0002901,2]
[404759040,1770513038152,-500.0,0.0002901,2]
[404759041,1770513038162,-500.0,0.0002901,2]
[404759042,1770513038172,-500.0,0.0002901,2]
[404759043,1770513038184,-500.0,0.0002901,2]
[404759044,1770513038193,-500.0,0.0002901,2]
[404759045,1770513038203,-500.0,0.0002901,2]
[404759046,1770513038212,-500.0,0.0002901,2]
[404759047,1770513038222,-500.0,0.0002901,2]
[404759048,1770513038232,-500.0,0.0002901,2]
[404759049,1770513038242,-500.0,0.0002901,2]
[404759050,1770513038252,-500.0,0.0002901,2]
[404759051,1770513038261,-500.0,0.0002901,2]
[404759052,1770513038270,-500.0,0.0002901,2]
[404759053,1770513038280,-500.0,0.0002901,2]
[404759054,1770513038288,-500.0,0.0002901,2]
[404759055,1770513038298,-500.0,0.0002901,2]
[404759056,1770513038308,-500.0,0.0002901,2]
[404759057,1770513038317,-500.0,0.0002901,2]
[404759058,1770513038327,-500.0,0.0002901,2]
[404759059,1770513038337,-500.0,0.0002901,2]
[404759060,1770513038347,-500.0,0.0002901,2]
[404759061,1770513038356,-500.0,0.0002901,2]
[404759062,1770513038366,-500.0,0.0002901,2]
[404759063,1770513038375,-500.0,0.0002901,2]
[404759064,1770513038385,-500.0,0.0002901,2]
[404759065,1770513038394,-500.0,0.0002901,2]
[404759066,1770513038403,-500.0,0.0002901,2]
[404759067,1770513038412,-500.0,0.0002901,2]
[404759068,1770513038422,-500.0,0.0002901,2]
[404759069,1770513038431,-500.0,0.0002901,2]
[404759070,1770513038440,-450.0,0.0002901,2]
[404759071,1770513038449,-500.0,0.0002901,2]
[404759072,1770513038460,-500.0,0.0002901,2]
[404759073,1770513038469,-500.0,0.0002901,2]
[404759074,1770513038478,-500.0,0.0002901,2]
[404759075,1770513038487,-500.0,0.0002901,2]
[404759076,1770513038497,-199.76626799,0.0002901,2]
[404759077,1770513038509,-3000.0,0.0002901,3]
[404759078,1770513038524,-172610.30470466,0.00029011,2]
[404759079,1770513038537,-2201.83872897,0.00029011,2]
[404759080,1770513038559,-558.38385669,0.00029011,2]
[404759081,1770513039495,-558.84164923,0.00028911,2]
[404759082,1770513039551,-809.28334614,0.00028911,2]
[404759083,1770513039562,-4293.10566496,0.00029011,2]
[404759084,1770513039662,-3950.60752974,0.00029011,2]
[404759085,1770513039675,-3316385.75951498,0.00029011,2]
[404759086,1770513039686,-2500.0,0.00029011,2]
[404759087,1770513039699,-4470.32910549,0.000291,2]
[404759088,1770513039709,-170.81,0.000292,7]
[404759089,1770513039719,-3924.75,0.000292,2]
[404759090,1770513039730,-150.0,0.00029211,2]
[404759091,1770513039739,-150.0,0.00029211,2]
[404759092,1770513039749,-150.99,0.00029211,2]
[404759093,1770513039758,-352.78,0.00029211,2]
[404759094,1770513039768,-152.38,0.0003,2]
[404759095,1770513039779,-152.38,0.0003,2]
[404759096,1770513039790,-152.38,0.0003,2]
[404759097,1770513039800,-152.38,0.0003,2]
[404759098,1770513039811,-152.38,0.0003,2]
[404759099,1770513039821,-152.38,0.0003,2]
[404759100,1770513039832,-1567.92802206,0.00030595,2]
[404759101,1770513039842,-4470.32910549,0.00030763,2]
[404759102,1770513039853,-7219.0,0.000315,2]
[404759103,1770513039863,-5000.0,0.00031974,2]
[404759104,1770513039874,-151.0,0.00032185,2]
[404759105,1770513039884,-151.0,0.00032185,2]
[404759106,1770513039896,-151.0,0.00032185,2]
[404759107,1770513039908,-151.0,0.00032185,2]
[404759108,1770513039919,-151.0,0.00032185,2]
[404759109,1770513039930,-151.0,0.00032185,2]